[Event "Chess Festival Groningen 2023 | A"]
[Site "Groningen, Netherlands"]
[Date "2023.12.23"]
[Round "3.3"]
[White "Bulmaga, Irina"]
[Black "Kobo, Ori"]
[Result "0-1"]
[TimeControl "90min/40moves + 30min + 30sec/move"]
[WhiteElo "2439"]
[BlackElo "2541"]

1. e4 {[%clk 01:30:56]} {[%emt 00:00:03]} e5 {[%clk 01:30:40]} {[%emt
00:00:21]} 2. Nf3 {[%clk 01:31:17]} {[%emt 00:00:08]} Nc6 {[%clk 01:30:47]}
{[%emt 00:00:23]} 3. d4 {[%clk 01:31:32]} {[%emt 00:00:16]} exd4 {[%clk
01:31:01]} {[%emt 00:00:16]} 4. Nxd4 {[%clk 01:31:48]} {[%emt 00:00:13]} Bc5
{[%clk 01:31:06]} {[%emt 00:00:25]} 5. Be3 {[%clk 01:31:45]} {[%emt 00:00:33]}
Qf6 {[%clk 01:30:49]} {[%emt 00:00:47]} 6. c3 {[%clk 01:32:05]} {[%emt
00:00:11]} d6 {[%clk 01:30:55]} {[%emt 00:00:24]} 7. Na3 {[%clk 01:27:54]}
{[%emt 00:04:41]} Bxa3 {[%clk 01:18:41]} {[%emt 00:12:44]} 8. bxa3 {[%clk
01:27:31]} {[%emt 00:00:53]} a6 {[%clk 01:03:12]} {[%emt 00:16:00]} 9. Be2
{[%clk 01:14:00]} {[%emt 00:14:01]} Nge7 {[%clk 00:48:48]} {[%emt 00:14:54]} 10.
O-O {[%clk 01:00:13]} {[%emt 00:14:17]} O-O {[%clk 00:31:23]} {[%emt 00:17:53]}
11. f4 {[%clk 00:55:35]} {[%emt 00:05:09]} d5 {[%clk 00:31:10]} {[%emt
00:00:43]} 12. e5 {[%clk 00:51:16]} {[%emt 00:04:50]} Qh6 {[%clk 00:31:34]}
{[%emt 00:00:06]} 13. Qd2 {[%clk 00:42:24]} {[%emt 00:09:22]} Nxd4 {[%clk
00:26:16]} {[%emt 00:05:48]} 14. cxd4 {[%clk 00:41:29]} {[%emt 00:01:25]} Qg6
{[%clk 00:26:14]} {[%emt 00:00:32]} 15. Rac1 {[%clk 00:34:36]} {[%emt
00:07:24]} c6 {[%clk 00:24:46]} {[%emt 00:01:58]} 16. Rc3 {[%clk 00:22:51]}
{[%emt 00:12:15]} Bg4 {[%clk 00:15:39]} {[%emt 00:09:36]} 17. Bxg4 {[%clk
00:19:57]} {[%emt 00:03:25]} Qxg4 {[%clk 00:16:08]} {[%emt 00:00:02]} 18. h3
{[%clk 00:16:00]} {[%emt 00:04:27]} Qd7 {[%clk 00:11:55]} {[%emt 00:04:41]} 19.
g4 {[%clk 00:10:30]} {[%emt 00:06:01]} f5 {[%clk 00:12:13]} {[%emt 00:00:10]}
20. exf6 {[%clk 00:10:28]} {[%emt 00:00:35]} Rxf6 {[%clk 00:12:32]} {[%emt
00:00:11]} 21. f5 {[%clk 00:10:41]} {[%emt 00:00:17]} Nc8 {[%clk 00:10:18]}
{[%emt 00:02:44]} 22. Bf4 {[%clk 00:10:51]} {[%emt 00:00:20]} Nd6 {[%clk
00:09:14]} {[%emt 00:01:34]} 23. Bxd6 {[%clk 00:11:14]} {[%emt 00:00:07]} Qxd6
{[%clk 00:09:28]} {[%emt 00:00:16]} 24. Re1 {[%clk 00:07:55]} {[%emt 00:03:49]}
Raf8 {[%clk 00:09:13]} {[%emt 00:00:44]} 25. Re5 {[%clk 00:07:51]} {[%emt
00:00:34]} g6 {[%clk 00:06:54]} {[%emt 00:02:49]} 26. Qg2 {[%clk 00:07:20]}
{[%emt 00:01:01]} Kh8 {[%clk 00:05:35]} {[%emt 00:01:50]} 27. Rg3 {[%clk
00:04:01]} {[%emt 00:03:49]} Qd7 {[%clk 00:03:37]} {[%emt 00:02:28]} 28. Qe2
{[%clk 00:01:21]} {[%emt 00:03:10]} gxf5 {[%clk 00:03:13]} {[%emt 00:00:55]} 29.
g5 {[%clk 00:01:45]} {[%emt 00:00:06]} Qg7 {[%clk 00:01:05]} {[%emt 00:02:37]}
30. Qf2 {[%clk 00:00:55]} {[%emt 00:01:20]} R6f7 {[%clk 00:00:44]} {[%emt
00:00:51]} 31. h4 {[%clk 00:00:55]} {[%emt 00:00:30]} f4 {[%clk 00:01:01]}
{[%emt 00:00:13]} 32. Rf3 {[%clk 00:01:01]} {[%emt 00:00:24]} Qg6 {[%clk
00:01:06]} {[%emt 00:00:25]} 33. Kh2 {[%clk 00:00:51]} {[%emt 00:00:40]} Rf5
{[%clk 00:01:07]} {[%emt 00:00:30]} 34. Re7 {[%clk 00:00:57]} {[%emt 00:00:24]}
R5f7 {[%clk 00:01:13]} {[%emt 00:00:25]} 35. Re5 {[%clk 00:01:20]} {[%emt
00:00:06]} Rf5 {[%clk 00:00:36]} {[%emt 00:01:07]} 36. Re7 {[%clk 00:01:49]}
{[%emt 00:00:02]} R8f7 {[%clk 00:00:42]} {[%emt 00:00:24]} 37. Re8+ {[%clk
00:02:02]} {[%emt 00:00:17]} Kg7 {[%clk 00:01:04]} {[%emt 00:00:07]} 38. Kh3
{[%clk 00:00:45]} {[%emt 00:01:47]} h6 {[%clk 00:00:48]} {[%emt 00:00:46]} 39.
gxh6+ {[%clk 00:01:00]} {[%emt 00:00:15]} Kxh6 {[%clk 00:00:50]} {[%emt
00:00:28]} 40. Qe2 {[%clk 00:00:59]} {[%emt 00:00:30]} Kh7 {[%clk 00:00:32]}
{[%emt 00:00:48]} 41. Re6 {[%clk 00:19:05]} {[%emt 00:12:23]} Qh5 {[%clk
00:24:11]} {[%emt 00:06:51]} 42. Qd3 {[%clk 00:18:05]} {[%emt 00:01:31]} Kg7
{[%clk 00:21:11]} {[%emt 00:03:29]} 43. Qf1 {[%clk 00:16:56]} {[%emt 00:01:38]}
Kh7 {[%clk 00:14:21]} {[%emt 00:07:20]} 44. Qd3 {[%clk 00:16:42]} {[%emt
00:00:44]} Kg8 {[%clk 00:13:52]} {[%emt 00:00:59]} 45. Qf1 {[%clk 00:15:31]}
{[%emt 00:01:42]} Rh7 {[%clk 00:08:43]} {[%emt 00:05:39]} 46. Qf2 {[%clk
00:04:27]} {[%emt 00:11:34]} Qf7 {[%clk 00:08:38]} {[%emt 00:00:35]} 47. Re1
{[%clk 00:04:53]} {[%emt 00:00:03]} Rf6 {[%clk 00:06:44]} {[%emt 00:02:24]} 48.
Rf1 {[%clk 00:03:11]} {[%emt 00:02:12]} Qe6+ {[%clk 00:06:35]} {[%emt
00:00:39]} 49. Kh2 {[%clk 00:03:36]} {[%emt 00:00:05]} Rhf7 {[%clk 00:02:21]}
{[%emt 00:04:45]} 50. Rg1+ {[%clk 00:04:04]} {[%emt 00:00:02]} Kf8 {[%clk
00:02:04]} {[%emt 00:00:46]} 51. Rg5 {[%clk 00:03:22]} {[%emt 00:01:12]} Rf5
{[%clk 00:02:16]} {[%emt 00:00:19]} 52. Rg4 {[%clk 00:03:30]} {[%emt 00:00:22]}
Qe4 {[%clk 00:01:33]} {[%emt 00:01:12]} 53. a4 {[%clk 00:03:21]} {[%emt
00:00:40]} R5f6 {[%clk 00:01:01]} {[%emt 00:01:01]} 54. a5 {[%clk 00:03:24]}
{[%emt 00:00:28]} Qf5 {[%clk 00:00:38]} {[%emt 00:00:52]} 55. Rg5 {[%clk
00:03:06]} {[%emt 00:00:48]} Qh7 {[%clk 00:00:41]} {[%emt 00:00:28]} 56. Rg4
{[%clk 00:03:18]} {[%emt 00:00:18]} Qe4 {[%clk 00:01:05]} {[%emt 00:00:06]} 57.
a3 {[%clk 00:01:41]} {[%emt 00:02:07]} Ke7 {[%clk 00:00:35]} {[%emt 00:00:59]}
58. Rb3 {[%clk 00:01:29]} {[%emt 00:00:42]} Kf8 {[%clk 00:00:39]} {[%emt
00:00:26]} 59. Rf3 {[%clk 00:01:45]} {[%emt 00:00:14]} Ke8 {[%clk 00:00:35]}
{[%emt 00:00:35]} 60. Rg8+ {[%clk 00:01:45]} {[%emt 00:00:29]} Rf8 {[%clk
00:00:42]} {[%emt 00:00:22]} 61. Rg4 {[%clk 00:01:36]} {[%emt 00:00:40]} Kd8
{[%clk 00:00:53]} {[%emt 00:00:19]} 62. Rg5 {[%clk 00:00:43]} {[%emt 00:01:23]}
Kc8 {[%clk 00:00:57]} {[%emt 00:00:26]} 63. Re5 {[%clk 00:00:47]} {[%emt
00:00:26]} Qh7 {[%clk 00:01:05]} {[%emt 00:00:22]} 64. Qe1 {[%clk 00:00:40]}
{[%emt 00:00:37]} Qg6 {[%clk 00:00:32]} {[%emt 00:01:03]} 65. Re7 {[%clk
00:00:33]} {[%emt 00:00:37]} Rg8 {[%clk 00:00:45]} {[%emt 00:00:17]} 66. Qf1
{[%clk 00:00:33]} {[%emt 00:00:30]} Qg3+ {[%clk 00:00:42]} {[%emt 00:00:33]} 67.
Rxg3 {[%clk 00:00:42]} {[%emt 00:00:21]} fxg3+ {[%clk 00:01:10]} {[%emt
00:00:02]} 68. Kg2 {[%clk 00:01:01]} {[%emt 00:00:10]} Rxf1 {[%clk 00:01:35]}
{[%emt 00:00:05]} 69. Kxf1 {[%clk 00:01:30]} {[%emt 00:00:01]} Rh8 {[%clk
00:01:41]} {[%emt 00:00:25]} 70. Re3 {[%clk 00:00:32]} {[%emt 00:01:27]} Rxh4
{[%clk 00:02:02]} {[%emt 00:00:09]} 71. Rd3 {[%clk 00:00:55]} {[%emt 00:00:08]}
Rg4 {[%clk 00:01:49]} {[%emt 00:00:42]} 72. Kg2 {[%clk 00:01:22]} {[%emt
00:00:03]} Kc7 {[%clk 00:02:01]} {[%emt 00:00:18]} 73. Rd1 {[%clk 00:01:20]}
{[%emt 00:00:32]} Kd6 {[%clk 00:02:01]} {[%emt 00:00:30]} 74. Kf3 {[%clk
00:01:34]} {[%emt 00:00:16]} Rg7 {[%clk 00:02:14]} {[%emt 00:00:17]} 75. Kg2
{[%clk 00:01:47]} {[%emt 00:00:18]} c5 {[%clk 00:01:48]} {[%emt 00:00:57]} 76.
dxc5+ {[%clk 00:02:15]} {[%emt 00:00:02]} Kxc5 {[%clk 00:02:09]} {[%emt
00:00:09]} 77. Rc1+ {[%clk 00:02:42]} {[%emt 00:00:03]} Kb5 {[%clk 00:02:07]}
{[%emt 00:00:31]} 78. Rd1 {[%clk 00:03:10]} {[%emt 00:00:02]} Kxa5 {[%clk
00:01:45]} {[%emt 00:00:52]} 79. Rxd5+ {[%clk 00:03:38]} {[%emt 00:00:02]} Ka4
{[%clk 00:02:09]} {[%emt 00:00:06]} 80. Rd3 {[%clk 00:04:04]} {[%emt 00:00:04]}
b5 {[%clk 00:02:16]} {[%emt 00:00:24]} 81. Rf3 {[%clk 00:04:02]} {[%emt
00:00:31]} Rg5 {[%clk 00:01:49]} {[%emt 00:00:57]} 82. Re3 {[%clk 00:03:57]}
{[%emt 00:00:35]} a5 {[%clk 00:02:10]} {[%emt 00:00:09]} 83. Rf3 {[%clk
00:04:19]} {[%emt 00:00:08]} b4 {[%clk 00:02:13]} {[%emt 00:00:27]} 84. axb4
{[%clk 00:04:47]} {[%emt 00:00:02]} axb4 {[%clk 00:02:34]} {[%emt 00:00:08]} 85.
Rf4 {[%clk 00:05:11]} {[%emt 00:00:07]} Ka3 {[%clk 00:02:55]} {[%emt 00:00:09]}
0-1

[Event "Chess Festival Groningen 2023 | A"]
[Site "Groningen, Netherlands"]
[Date "2023.12.23"]
[Round "3.4"]
[White "De Winter, Arthur"]
[Black "Beerdsen, Thomas"]
[Result "1-0"]
[TimeControl "90min/40moves + 30min + 30sec/move"]
[WhiteElo "2405"]
[BlackElo "2511"]

1. e4 {[%clk 01:30:55]} {[%emt 00:00:03]} c5 {[%clk 01:30:54]} {[%emt
00:00:07]} 2. Nf3 {[%clk 01:31:21]} {[%emt 00:00:05]} d6 {[%clk 01:31:18]}
{[%emt 00:00:05]} 3. d4 {[%clk 01:31:43]} {[%emt 00:00:08]} cxd4 {[%clk
01:31:44]} {[%emt 00:00:05]} 4. Nxd4 {[%clk 01:32:09]} {[%emt 00:00:04]} Nf6
{[%clk 01:32:07]} {[%emt 00:00:06]} 5. Nc3 {[%clk 01:32:32]} {[%emt 00:00:07]}
a6 {[%clk 01:32:32]} {[%emt 00:00:06]} 6. h3 {[%clk 01:32:56]} {[%emt
00:00:06]} e5 {[%clk 01:32:14]} {[%emt 00:00:48]} 7. Nf3 {[%clk 01:33:21]}
{[%emt 00:00:05]} Be7 {[%clk 01:30:22]} {[%emt 00:02:21]} 8. g4 {[%clk
01:33:10]} {[%emt 00:00:41]} h6 {[%clk 01:30:20]} {[%emt 00:00:32]} 9. Rg1
{[%clk 01:33:36]} {[%emt 00:00:04]} b5 {[%clk 01:13:53]} {[%emt 00:16:57]} 10.
g5 {[%clk 01:33:50]} {[%emt 00:00:16]} hxg5 {[%clk 01:14:18]} {[%emt 00:00:05]}
11. Nxg5 {[%clk 01:34:17]} {[%emt 00:00:03]} Qc7 {[%clk 01:14:02]} {[%emt
00:00:45]} 12. Be3 {[%clk 01:29:01]} {[%emt 00:05:46]} Bb7 {[%clk 01:11:26]}
{[%emt 00:03:06]} 13. Qd2 {[%clk 01:29:13]} {[%emt 00:00:18]} Nbd7 {[%clk
01:11:23]} {[%emt 00:00:33]} 14. O-O-O {[%clk 01:27:55]} {[%emt 00:01:48]} b4
{[%clk 01:10:00]} {[%emt 00:01:53]} 15. Nd5 {[%clk 01:28:13]} {[%emt 00:00:12]}
Nxd5 {[%clk 01:10:21]} {[%emt 00:00:09]} 16. exd5 {[%clk 01:28:40]} {[%emt
00:00:03]} Nf6 {[%clk 01:10:11]} {[%emt 00:00:40]} 17. Bg2 {[%clk 01:27:21]}
{[%emt 00:01:49]} Bc8 {[%clk 01:10:15]} {[%emt 00:00:26]} 18. f4 {[%clk
01:12:02]} {[%emt 00:15:49]} Bf5 {[%clk 00:53:07]} {[%emt 00:17:38]} 19. Kb1
{[%clk 01:11:11]} {[%emt 00:01:21]} exf4 {[%clk 00:47:18]} {[%emt 00:06:19]} 20.
Bxf4 {[%clk 01:04:58]} {[%emt 00:06:43]} O-O {[%clk 00:39:23]} {[%emt
00:08:24]} 21. Be3 {[%clk 00:36:03]} {[%emt 00:29:26]} Rfc8 {[%clk 00:31:19]}
{[%emt 00:08:34]} 22. Rc1 {[%clk 00:36:18]} {[%emt 00:00:14]} Rab8 {[%clk
00:27:08]} {[%emt 00:04:42]} 23. Ka1 {[%clk 00:28:52]} {[%emt 00:07:56]} Bxc2
{[%clk 00:19:04]} {[%emt 00:08:34]} 24. Bd4 {[%clk 00:27:43]} {[%emt 00:01:39]}
b3 {[%clk 00:18:47]} {[%emt 00:00:47]} 25. Be4 {[%clk 00:23:49]} {[%emt
00:04:24]} Qd8 {[%clk 00:09:14]} {[%emt 00:10:03]} 26. Bxc2 {[%clk 00:14:24]}
{[%emt 00:09:55]} Rxc2 {[%clk 00:08:42]} {[%emt 00:01:02]} 27. Rxc2 {[%clk
00:14:33]} {[%emt 00:00:21]} bxc2 {[%clk 00:09:08]} {[%emt 00:00:05]} 28. Qxc2
{[%clk 00:14:45]} {[%emt 00:00:17]} Qc8 {[%clk 00:04:26]} {[%emt 00:05:12]} 29.
Qb1 {[%clk 00:13:44]} {[%emt 00:01:31]} Qb7 {[%clk 00:04:15]} {[%emt 00:00:41]}
30. Nxf7 {[%clk 00:11:08]} {[%emt 00:03:06]} Qxd5 {[%clk 00:04:15]} {[%emt
00:00:30]} 31. Nh6+ {[%clk 00:11:06]} {[%emt 00:00:32]} Kf8 {[%clk 00:03:39]}
{[%emt 00:01:06]} 32. Qg6 {[%clk 00:10:56]} {[%emt 00:00:40]} gxh6 {[%clk
00:02:22]} {[%emt 00:01:47]} 33. Bxf6 {[%clk 00:10:57]} {[%emt 00:00:30]} Rb7
{[%clk 00:01:11]} {[%emt 00:01:41]} 34. Bg7+ {[%clk 00:11:14]} {[%emt
00:00:12]} Kg8 {[%clk 00:01:36]} {[%emt 00:00:05]} 35. Qe8+ {[%clk 00:11:41]}
{[%emt 00:00:03]} 1-0

[Event "Chess Festival Groningen 2023 | A"]
[Site "Groningen, Netherlands"]
[Date "2023.12.23"]
[Round "3.5"]
[White "Krasenkow, Michal"]
[Black "Kanov, Nikola"]
[Result "1-0"]
[TimeControl "90min/40moves + 30min + 30sec/move"]
[WhiteElo "2532"]
[BlackElo "2371"]

1. d4 {[%clk 01:30:54]} {[%emt 00:00:06]} Nf6 {[%clk 01:30:44]} {[%emt
00:00:16]} 2. c4 {[%clk 01:31:18]} {[%emt 00:00:06]} e6 {[%clk 01:31:07]}
{[%emt 00:00:07]} 3. Nc3 {[%clk 01:31:37]} {[%emt 00:00:11]} Bb4 {[%clk
01:31:09]} {[%emt 00:00:27]} 4. e3 {[%clk 01:31:52]} {[%emt 00:00:16]} O-O
{[%clk 01:30:49]} {[%emt 00:00:49]} 5. Bd3 {[%clk 01:31:54]} {[%emt 00:00:28]}
d5 {[%clk 01:30:43]} {[%emt 00:00:37]} 6. Nge2 {[%clk 01:31:05]} {[%emt
00:01:19]} dxc4 {[%clk 01:27:30]} {[%emt 00:03:43]} 7. Bxc4 {[%clk 01:31:25]}
{[%emt 00:00:10]} c5 {[%clk 01:25:49]} {[%emt 00:02:12]} 8. a3 {[%clk
01:30:58]} {[%emt 00:00:58]} Bxc3+ {[%clk 01:25:37]} {[%emt 00:00:42]} 9. bxc3
{[%clk 01:31:09]} {[%emt 00:00:18]} Qc7 {[%clk 01:24:57]} {[%emt 00:01:09]} 10.
Ba2 {[%clk 01:28:28]} {[%emt 00:03:12]} Rd8 {[%clk 01:20:11]} {[%emt 00:05:16]}
11. O-O {[%clk 01:26:14]} {[%emt 00:02:44]} e5 {[%clk 01:17:03]} {[%emt
00:03:37]} 12. f3 {[%clk 01:18:53]} {[%emt 00:07:51]} Be6 {[%clk 01:07:10]}
{[%emt 00:10:23]} 13. Bxe6 {[%clk 01:17:11]} {[%emt 00:02:12]} fxe6 {[%clk
01:07:35]} {[%emt 00:00:05]} 14. Qb3 {[%clk 01:17:25]} {[%emt 00:00:17]} c4
{[%clk 01:05:10]} {[%emt 00:02:55]} 15. Qa2 {[%clk 01:17:31]} {[%emt 00:00:24]}
Nbd7 {[%clk 01:03:58]} {[%emt 00:01:42]} 16. e4 {[%clk 01:15:58]} {[%emt
00:02:02]} exd4 {[%clk 00:58:35]} {[%emt 00:05:53]} 17. cxd4 {[%clk 01:16:09]}
{[%emt 00:00:19]} b5 {[%clk 00:58:02]} {[%emt 00:01:02]} 18. Rb1 {[%clk
01:14:25]} {[%emt 00:02:14]} Rab8 {[%clk 00:56:23]} {[%emt 00:02:09]} 19. Nc3
{[%clk 01:11:19]} {[%emt 00:03:36]} a6 {[%clk 00:54:09]} {[%emt 00:02:44]} 20.
Be3 {[%clk 01:09:38]} {[%emt 00:02:10]} e5 {[%clk 00:46:20]} {[%emt 00:08:19]}
21. Rfd1 {[%clk 01:05:31]} {[%emt 00:04:36]} Kh8 {[%clk 00:39:08]} {[%emt
00:07:43]} 22. Qf2 {[%clk 01:00:10]} {[%emt 00:05:51]} Qa5 {[%clk 00:34:26]}
{[%emt 00:05:13]} 23. Qb2 {[%clk 00:58:55]} {[%emt 00:01:45]} Qc7 {[%clk
00:30:37]} {[%emt 00:04:19]} 24. Na2 {[%clk 00:49:18]} {[%emt 00:10:06]} Nb6
{[%clk 00:26:43]} {[%emt 00:04:25]} 25. dxe5 {[%clk 00:46:43]} {[%emt
00:03:05]} Na4 {[%clk 00:27:03]} {[%emt 00:00:10]} 26. Qa1 {[%clk 00:39:47]}
{[%emt 00:07:26]} Nd7 {[%clk 00:27:02]} {[%emt 00:00:30]} 27. Nb4 {[%clk
00:39:05]} {[%emt 00:01:13]} Ndc5 {[%clk 00:25:18]} {[%emt 00:02:14]} 28. Nd5
{[%clk 00:32:05]} {[%emt 00:07:29]} Qc6 {[%clk 00:24:46]} {[%emt 00:01:03]} 29.
Bxc5 {[%clk 00:26:57]} {[%emt 00:05:37]} Qxc5+ {[%clk 00:24:28]} {[%emt
00:00:48]} 30. Kh1 {[%clk 00:26:21]} {[%emt 00:01:06]} Re8 {[%clk 00:24:12]}
{[%emt 00:00:46]} 31. f4 {[%clk 00:25:00]} {[%emt 00:01:52]} c3 {[%clk
00:20:58]} {[%emt 00:03:45]} 32. Rbc1 {[%clk 00:23:07]} {[%emt 00:02:22]} Rbc8
{[%clk 00:21:23]} {[%emt 00:00:06]} 33. Qa2 {[%clk 00:16:16]} {[%emt 00:07:21]}
a5 {[%clk 00:21:44]} {[%emt 00:00:08]} 34. Rd3 {[%clk 00:14:26]} {[%emt
00:02:20]} h6 {[%clk 00:12:49]} {[%emt 00:09:26]} 35. g3 {[%clk 00:10:12]}
{[%emt 00:04:43]} Kh7 {[%clk 00:03:49]} {[%emt 00:09:31]} 36. Nf6+ {[%clk
00:09:41]} {[%emt 00:01:01]} Kh8 {[%clk 00:03:25]} {[%emt 00:00:54]} 37. Nxe8
{[%clk 00:09:57]} {[%emt 00:00:13]} Rxe8 {[%clk 00:03:52]} {[%emt 00:00:03]} 38.
Kg2 {[%clk 00:06:25]} {[%emt 00:04:03]} b4 {[%clk 00:03:01]} {[%emt 00:01:20]}
39. axb4 {[%clk 00:06:25]} {[%emt 00:00:30]} Qxb4 {[%clk 00:03:29]} {[%emt
00:00:02]} 40. Kf3 {[%clk 00:05:53]} {[%emt 00:01:02]} Nc5 {[%clk 00:00:33]}
{[%emt 00:03:26]} 41. Re3 {[%clk 00:04:05]} {[%emt 00:02:17]} Rd8 {[%clk
00:27:06]} {[%emt 00:03:58]} 42. Rcxc3 {[%clk 00:29:49]} {[%emt 00:04:45]} Nxe4
{[%clk 00:25:01]} {[%emt 00:02:35]} 43. Rcd3 {[%clk 00:29:40]} {[%emt
00:00:38]} Nd2+ {[%clk 00:23:04]} {[%emt 00:02:28]} 44. Kg4 {[%clk 00:29:54]}
{[%emt 00:00:15]} Rxd3 {[%clk 00:21:30]} {[%emt 00:02:04]} 45. Rxd3 {[%clk
00:29:22]} {[%emt 00:01:02]} Nc4 {[%clk 00:21:50]} {[%emt 00:00:09]} 46. Kh3
{[%clk 00:27:49]} {[%emt 00:02:04]} g5 {[%clk 00:20:51]} {[%emt 00:01:29]} 47.
Rd8+ {[%clk 00:27:22]} {[%emt 00:00:57]} Kg7 {[%clk 00:20:40]} {[%emt
00:00:41]} 48. Rd7+ {[%clk 00:27:48]} {[%emt 00:00:05]} Kf8 {[%clk 00:19:33]}
{[%emt 00:01:37]} 49. Qc2 {[%clk 00:28:06]} {[%emt 00:00:11]} g4+ {[%clk
00:18:33]} {[%emt 00:01:30]} 50. Kh4 {[%clk 00:27:48]} {[%emt 00:00:48]} Ke8
{[%clk 00:19:00]} {[%emt 00:00:04]} 51. e6 {[%clk 00:27:51]} {[%emt 00:00:26]}
1-0

[Event "Chess Festival Groningen 2023 | A"]
[Site "Groningen, Netherlands"]
[Date "2023.12.23"]
[Round "3.6"]
[White "Gomes, Mary Ann"]
[Black "Reinderman, Dimitri"]
[Result "1/2-1/2"]
[TimeControl "90min/40moves + 30min + 30sec/move"]
[WhiteElo "2332"]
[BlackElo "2580"]

1. Nf3 {[%clk 01:30:49]} {[%emt 00:00:10]} d5 {[%clk 01:30:44]} {[%emt
00:00:17]} 2. g3 {[%clk 01:31:12]} {[%emt 00:00:07]} c5 {[%clk 01:31:02]}
{[%emt 00:00:11]} 3. Bg2 {[%clk 01:31:04]} {[%emt 00:00:38]} Nc6 {[%clk
01:31:26]} {[%emt 00:00:06]} 4. c4 {[%clk 01:31:28]} {[%emt 00:00:06]} dxc4
{[%clk 01:31:41]} {[%emt 00:00:15]} 5. Na3 {[%clk 01:31:14]} {[%emt 00:00:44]}
e5 {[%clk 01:31:20]} {[%emt 00:00:52]} 6. O-O {[%clk 01:30:58]} {[%emt
00:00:45]} Be6 {[%clk 01:29:46]} {[%emt 00:02:04]} 7. Qa4 {[%clk 01:31:12]}
{[%emt 00:00:16]} f6 {[%clk 01:29:27]} {[%emt 00:00:50]} 8. Nxc4 {[%clk
01:31:04]} {[%emt 00:00:38]} Nge7 {[%clk 01:22:09]} {[%emt 00:07:48]} 9. d3
{[%clk 01:31:18]} {[%emt 00:00:15]} Nd5 {[%clk 01:21:43]} {[%emt 00:00:57]} 10.
Bd2 {[%clk 01:26:12]} {[%emt 00:05:36]} Qd7 {[%clk 01:20:18]} {[%emt 00:01:55]}
11. Rfc1 {[%clk 01:21:58]} {[%emt 00:04:43]} Rb8 {[%clk 01:16:32]} {[%emt
00:04:17]} 12. Ne3 {[%clk 01:21:17]} {[%emt 00:01:10]} Nb6 {[%clk 01:09:37]}
{[%emt 00:07:26]} 13. Qd1 {[%clk 01:10:32]} {[%emt 00:11:14]} Be7 {[%clk
01:08:32]} {[%emt 00:01:35]} 14. a4 {[%clk 01:07:31]} {[%emt 00:03:31]} a5
{[%clk 01:01:59]} {[%emt 00:07:04]} 15. Bc3 {[%clk 01:06:14]} {[%emt 00:01:46]}
Nc8 {[%clk 00:56:24]} {[%emt 00:06:05]} 16. Nd2 {[%clk 01:05:32]} {[%emt
00:01:12]} b6 {[%clk 00:56:10]} {[%emt 00:00:45]} 17. f4 {[%clk 00:58:37]}
{[%emt 00:07:24]} exf4 {[%clk 00:53:50]} {[%emt 00:02:50]} 18. gxf4 {[%clk
00:59:00]} {[%emt 00:00:06]} O-O {[%clk 00:53:24]} {[%emt 00:00:56]} 19. f5
{[%clk 00:59:08]} {[%emt 00:00:22]} Bf7 {[%clk 00:53:37]} {[%emt 00:00:17]} 20.
Qe1 {[%clk 00:57:36]} {[%emt 00:02:02]} Nd4 {[%clk 00:45:30]} {[%emt 00:08:37]}
21. Qf2 {[%clk 00:55:56]} {[%emt 00:02:10]} Re8 {[%clk 00:45:22]} {[%emt
00:00:39]} 22. Bxd4 {[%clk 00:43:54]} {[%emt 00:12:31]} cxd4 {[%clk 00:34:48]}
{[%emt 00:11:05]} 23. Ng4 {[%clk 00:43:51]} {[%emt 00:00:33]} Na7 {[%clk
00:21:51]} {[%emt 00:13:29]} 24. Qg3 {[%clk 00:39:09]} {[%emt 00:05:10]} Rbc8
{[%clk 00:22:02]} {[%emt 00:00:20]} 25. Nh6+ {[%clk 00:35:30]} {[%emt
00:04:09]} Kf8 {[%clk 00:22:24]} {[%emt 00:00:08]} 26. Nxf7 {[%clk 00:35:52]}
{[%emt 00:00:08]} Kxf7 {[%clk 00:22:51]} {[%emt 00:00:03]} 27. Qf3 {[%clk
00:29:21]} {[%emt 00:07:01]} Bb4 {[%clk 00:16:10]} {[%emt 00:07:11]} 28. Nb3
{[%clk 00:22:46]} {[%emt 00:07:05]} Re5 {[%clk 00:11:39]} {[%emt 00:05:01]} 29.
Qb7 {[%clk 00:14:10]} {[%emt 00:09:06]} Qxb7 {[%clk 00:11:10]} {[%emt
00:01:00]} 30. Bxb7 {[%clk 00:14:34]} {[%emt 00:00:07]} Rce8 {[%clk 00:09:04]}
{[%emt 00:02:35]} 31. Rc7+ {[%clk 00:12:09]} {[%emt 00:02:55]} R8e7 {[%clk
00:09:24]} {[%emt 00:00:11]} 32. Rac1 {[%clk 00:12:16]} {[%emt 00:00:22]} Rxe2
{[%clk 00:06:09]} {[%emt 00:03:45]} 33. Nxd4 {[%clk 00:09:47]} {[%emt
00:02:58]} R2e5 {[%clk 00:03:15]} {[%emt 00:03:24]} 34. Rxe7+ {[%clk 00:07:31]}
{[%emt 00:02:46]} Kxe7 {[%clk 00:03:27]} {[%emt 00:00:19]} 35. Nf3 {[%clk
00:06:21]} {[%emt 00:01:40]} Rc5 {[%clk 00:03:36]} {[%emt 00:00:21]} 36. Rxc5
{[%clk 00:04:32]} {[%emt 00:02:19]} Bxc5+ {[%clk 00:03:57]} {[%emt 00:00:09]}
1/2-1/2